fUSD/lending_fUSD_20241101
["ID","MTS","AMOUNT","RATE_DAILY","PERIOD"]
[341152291,1730477441449,-500.0,0.00043286,3]
[341152292,1730477441458,-500.0,0.00043286,3]
[341152293,1730477441467,-468.24477188,0.00043286,3]
[341152294,1730477441477,-535.9,0.00043286,3]
[341152295,1730477441486,-500.0,0.00043286,3]
[341152296,1730477441495,-500.0,0.00043286,3]
[341152297,1730477441504,-500.0,0.00043286,3]
[341152298,1730477441519,-518.19918345,0.00043286,3]
[341152299,1730477441528,-548.08413922,0.00043286,3]
[341152300,1730477441540,-516.46586747,0.00043286,3]
[341152301,1730477441549,-504.44607025,0.00043286,3]
[341152302,1730477441558,-525.41897961,0.00043286,3]
[341152303,1730477441567,-500.0,0.00043286,3]
[341152304,1730477441577,-500.0,0.00043286,3]
[341152305,1730477441586,-500.0,0.00043286,3]
[341152306,1730477441595,-500.0,0.00043286,3]
[341152307,1730477441604,-500.0,0.00043286,3]
[341152308,1730477441613,-500.0,0.00043286,3]
[341152309,1730477441623,-500.0,0.00043286,3]
[341152310,1730477441632,-606.77318164,0.00043286,3]
[341152311,1730477441641,-506.39485854,0.00043286,3]
[341152312,1730477441650,-500.0,0.00043286,3]
[341152313,1730477441659,-507.61470238,0.00043286,3]
[341152314,1730477441668,-500.0,0.00043286,3]
[341152315,1730477441677,-500.0,0.00043286,3]
[341152316,1730477441686,-524.82379047,0.00043286,3]
[341152317,1730477441695,-500.0,0.00043286,3]
[341152318,1730477441705,-500.0,0.00043286,3]
[341152319,1730477441714,-477.08432023,0.00043286,3]
[341152320,1730477441723,-200.0,0.00043286,3]
[341152321,1730477441732,-500.0,0.00043286,3]
[341152322,1730477441742,-500.0,0.00043286,3]
[341152323,1730477441750,-504.65738593,0.00043286,3]
[341152324,1730477441763,-500.0,0.00043286,3]
[341152325,1730477441772,-500.0,0.00043286,3]
[341152326,1730477441781,-150.0,0.00043286,3]
[341152327,1730477441790,-500.0,0.00043286,3]
[341152328,1730477441799,-500.2623407,0.00043286,3]
[341152329,1730477441809,-500.0,0.00043286,3]
[341152330,1730477441818,-500.0,0.00043286,3]
[341152331,1730477441828,-500.0,0.00043286,3]
[341152332,1730477441837,-500.0,0.00043286,3]
[341152333,1730477441846,-500.0,0.00043286,3]
[341152334,1730477441855,-291.81410084,0.00043286,3]
[341152335,1730477441868,-213.88646203,0.00043286,3]
[341152336,1730477441877,-500.0,0.00043286,3]
[341152337,1730477441886,-500.0,0.00043286,3]
[341152338,1730477441895,-494.66005743,0.00043286,3]
[341152339,1730477441905,-500.0,0.00043286,3]
[341152340,1730477441914,-502.3280454,0.00043286,3]
[341152341,1730477441923,-506.28023767,0.00043286,3]
[341152342,1730477441932,-520.31264702,0.00043286,3]
[341152343,1730477441942,-582.10572126,0.00043286,3]
[341152344,1730477441952,-511.71441397,0.00043286,3]
[341152345,1730477441962,-530.77441465,0.00043286,3]
[341152346,1730477441971,-500.0,0.00043286,3]
[341152347,1730477441981,-516.98004053,0.00043286,3]
[341152348,1730477441991,-500.0,0.00043286,3]
[341152349,1730477442001,-358.44755975,0.00043286,3]
[341152350,1730477442013,-500.0,0.00043286,3]
[341152351,1730477442023,-608.52972911,0.00043286,3]
[341152352,1730477442033,-500.0,0.00043286,3]
[341152353,1730477442043,-500.0,0.00043286,3]
[341152354,1730477442052,-500.0,0.00043286,3]
[341152355,1730477442062,-500.0,0.00043286,3]
[341152356,1730477442071,-500.0,0.00043286,3]
[341152357,1730477442080,-500.0,0.00043286,3]
[341152358,1730477442089,-500.0,0.00043286,3]
[341152359,1730477442098,-277.42538691,0.00043286,3]
[341152360,1730477442108,-500.0,0.00043286,3]
[341152361,1730477442120,-500.0,0.00043286,3]
[341152362,1730477442130,-500.0,0.00043286,3]
[341152363,1730477442139,-500.0,0.00043286,3]
[341152364,1730477442150,-500.0,0.00043286,3]
[341152365,1730477442161,-500.0,0.00043286,3]
[341152366,1730477442171,-500.0,0.00043286,3]
[341152367,1730477442181,-500.0,0.00043286,3]
[341152368,1730477442190,-500.0,0.00043286,3]
[341152369,1730477442199,-500.0,0.00043286,3]
[341152370,1730477442208,-500.0,0.00043286,3]
[341152371,1730477442218,-500.0,0.00043286,3]
[341152372,1730477442227,-500.0,0.00043286,3]
[341152373,1730477442237,-501.48461324,0.00043286,3]
[341152374,1730477442247,-500.0,0.00043286,3]
[341152375,1730477442258,-190.67952411,0.00043286,3]
[341152376,1730477442271,-500.0,0.00043286,3]
[341152377,1730477442280,-402.72230042,0.00043286,3]
[341152378,1730477442288,-500.0,0.00043286,3]
[341152379,1730477442298,-500.0,0.00043286,3]
[341152380,1730477442307,-500.0,0.00043286,3]
[341152381,1730477442316,-500.0,0.00043286,3]
[341152382,1730477442327,-500.0,0.00043286,3]
[341152383,1730477442338,-500.0,0.00043286,3]
[341152384,1730477442348,-500.0,0.00043286,3]
[341152385,1730477442358,-500.0,0.00043286,3]
[341152386,1730477442369,-500.0,0.00043286,3]
[341152387,1730477442378,-500.0,0.00043286,3]
[341152388,1730477442388,-500.0,0.00043286,3]
[341152389,1730477442398,-500.0,0.00043286,3]
[341152390,1730477442409,-500.0,0.00043286,3]
[341152391,1730477442420,-500.0,0.00043286,3]
[341152392,1730477442429,-589.1343596,0.00043286,3]
[341152393,1730477442440,-500.0,0.00043286,3]
[341152394,1730477442450,-500.0,0.00043286,3]
[341152395,1730477442461,-500.0,0.00043286,3]
[341152396,1730477442471,-500.0,0.00043286,3]
[341152397,1730477442481,-470.10023542,0.00043286,3]
[341152398,1730477442490,-500.0,0.00043286,3]
[341152399,1730477442499,-519.40637779,0.00043286,3]
[341152400,1730477442508,-509.75881118,0.00043286,3]
[341152401,1730477442519,-500.0,0.00043286,3]
[341152402,1730477442528,-167.708544,0.00043286,3]
[341152403,1730477442537,-500.0,0.00043286,3]
[341152404,1730477442547,-500.0,0.00043286,3]
[341152405,1730477442556,-500.0,0.00043286,3]
[341152406,1730477442565,-550.19495174,0.00043286,3]
[341152407,1730477442574,-237.3724647,0.00043286,3]
[341152408,1730477442584,-580.37669997,0.00043286,3]
[341152409,1730477442593,-500.0,0.00043286,3]
[341152410,1730477442602,-500.0,0.00043286,3]
[341152411,1730477442611,-500.0,0.00043286,3]
[341152412,1730477442620,-500.0,0.00043286,3]
[341152413,1730477442630,-500.0,0.00043286,3]
[341152414,1730477442640,-500.0,0.00043286,3]
[341152415,1730477442650,-500.0,0.00043286,3]
[341152416,1730477442660,-500.0,0.00043287,3]
[341152417,1730477442669,-500.0,0.00043287,3]
[341152418,1730477442679,-289.33,0.000433,2]
[341152419,1730477442688,-503.5,0.00043302,3]
[341152420,1730477442696,-500.0,0.00043379,3]
[341152421,1730477442706,-503.84665751,0.00043379,3]
[341152422,1730477442715,-497.70892635,0.00043379,3]
[341152423,1730477442725,-500.0,0.00043379,3]
[341152424,1730477442734,-500.0,0.00043379,3]
[341152425,1730477442743,-205.11609681,0.00043379,7]
[341152426,1730477442762,-500.0,0.00042206,3]
[341152427,1730477442771,-40.5928046,0.00043379,7]
[341152428,1730477442782,-254.29109859,0.00043379,7]
[341152429,1730477442792,-500.0,0.00043379,3]
[341152430,1730477442801,-500.0,0.00043379,3]
[341152431,1730477442810,-500.0,0.00043379,3]
[341152432,1730477442820,-500.0,0.00043379,3]
[341152433,1730477442829,-500.0,0.00043379,3]
[341152434,1730477442838,-500.0,0.00043379,3]
[341152435,1730477442849,-500.0,0.00043379,3]
[341152436,1730477442859,-500.0,0.00043379,3]
[341152437,1730477442868,-500.0,0.00043379,3]
[341152438,1730477442877,-500.0,0.00043379,3]
[341152439,1730477442887,-500.0,0.00043379,3]
[341152440,1730477442896,-606.88,0.00043379,3]
[341152441,1730477442906,-500.0,0.00043379,3]
[341152442,1730477442915,-300.0,0.00043379,3]
[341152443,1730477442925,-500.0,0.00043379,3]
[341152444,1730477442934,-500.0,0.00043379,3]
[341152445,1730477442944,-500.0,0.00043379,3]
[341152446,1730477442956,-609.73090772,0.00043379,3]
[341152447,1730477442965,-111.20908586,0.0004343,14]
[341152448,1730477442976,-135.21991414,0.0004343,14]
[341152449,1730477442986,-409.67297281,0.00043457,3]
[341152460,1730477443603,-714.63,0.00042362,3]
[341152461,1730477443613,-500.0,0.0004248,3]
[341152462,1730477443624,-714.63,0.00042636,3]
[341152463,1730477443633,-500.0,0.00042754,3]
[341152464,1730477443642,-714.63,0.0004291,3]
[341152465,1730477443652,-500.0,0.00043028,3]
[341152466,1730477443662,-714.63,0.00043184,3]
[341152467,1730477443671,-333.72650318,0.00043286,3]
[341152468,1730477443681,-313.6017786,0.00043302,3]
[341152469,1730477443801,-186.3982214,0.00043302,3]
[341152470,1730477443810,-331.61702719,0.00043457,3]
[341152471,1730477443820,-500.0,0.00043457,3]
[341152472,1730477443829,-500.0,0.00043458,3]
[341152473,1730477443839,-500.0,0.00043458,3]
[341152474,1730477443848,-500.0,0.00043458,3]
[341152475,1730477443858,-500.0,0.00043458,3]
[341152476,1730477443867,-226.11233912,0.00043458,3]
[341152477,1730477443879,-273.88766088,0.00043458,3]
[341152478,1730477443889,-500.0,0.00043458,3]
[341152479,1730477443899,-500.0,0.00043458,3]
[341152480,1730477443909,-714.63,0.00043458,3]
[341152481,1730477443918,-502.37650045,0.0004346,3]
[341152482,1730477443930,-167.58502727,0.0004346,3]
[341152483,1730477443940,-500.0,0.0004346,3]
[341152484,1730477443955,-503.37824782,0.0004346,3]
[341152485,1730477443965,-512.46189615,0.0004346,3]
[341152486,1730477443975,-528.83078829,0.0004346,3]
[341152487,1730477443986,-533.41329498,0.0004346,3]
[341152488,1730477443996,-451.79326916,0.0004346,3]
[341152489,1730477444008,-101.05498129,0.0004346,3]
[341152490,1730477444021,-500.0,0.0004346,3]
[341152491,1730477444032,-544.14874671,0.0004346,3]
[341152492,1730477444042,-500.0,0.0004346,3]
[341152493,1730477444052,-421.56370316,0.0004346,3]
[341152494,1730477444062,-503.21956934,0.0004346,3]
[341152495,1730477444071,-500.0,0.0004346,3]
[341152496,1730477444081,-416.0629995,0.0004346,3]
[341152497,1730477444098,-83.9370005,0.0004346,3]
[341152498,1730477444108,-2128.21190359,0.00043461,2]
[341152499,1730477444125,-40276.70719641,0.00043461,2]
[341152500,1730477444135,-16546.4397,0.00043461,2]
[341152501,1730477444144,-6487.47,0.000435,80]
[341152502,1730477444154,-500.0,0.0004356,3]
[341152503,1730477444163,-500.0,0.0004356,3]
[341152504,1730477444172,-500.0,0.0004356,3]
[341152505,1730477444182,-420.15837696,0.0004356,3]
[341152506,1730477444191,-500.0,0.0004356,3]
[341152507,1730477444200,-500.0,0.0004356,3]
[341152508,1730477444209,-508.3,0.0004356,3]
[341152509,1730477444218,-500.0,0.0004356,3]
[341152510,1730477444228,-200.0,0.0004356,3]
[341152511,1730477444237,-500.0,0.0004356,3]
[341152512,1730477444246,-500.0,0.0004356,3]
[341152513,1730477444256,-150.0,0.0004356,3]
[341152514,1730477444272,-500.0,0.0004356,3]
[341152515,1730477444281,-500.0,0.0004356,3]
[341152516,1730477444290,-500.0,0.0004356,3]
[341152517,1730477444299,-500.0,0.0004356,3]
[341152518,1730477444309,-500.0,0.0004356,3]
[341152519,1730477444319,-337.91674509,0.0004356,3]
[341152520,1730477444329,-270.35846018,0.0004356,3]
[341152521,1730477444338,-500.0,0.0004356,3]
[341152522,1730477444348,-500.0,0.0004356,3]
[341152523,1730477444357,-225.87877329,0.0004356,3]
[341152524,1730477444367,-409.45926027,0.0004356,3]
[341152525,1730477444377,-500.0,0.0004356,3]
[341152526,1730477444386,-500.0,0.0004356,3]
[341152527,1730477444396,-500.0,0.0004356,3]
[341152528,1730477444405,-500.0,0.0004356,3]
[341152529,1730477444414,-394.61,0.0004356,3]
[341152530,1730477444423,-500.0,0.0004356,3]
[341152531,1730477444433,-388.26035259,0.0004356,3]
[341152532,1730477444442,-500.0,0.0004356,3]
[341152533,1730477444451,-500.0,0.0004356,3]
[341152534,1730477444460,-500.0,0.0004356,3]
[341152535,1730477444469,-500.0,0.0004356,3]
[341152536,1730477444479,-578.28906298,0.0004356,3]
[341152537,1730477444489,-500.0,0.00043561,3]
[341152538,1730477444498,-500.0,0.00043561,3]
[341152539,1730477444507,-863.42,0.00043562,2]
[341152540,1730477444523,-431.71,0.00043562,2]
[341152541,1730477444532,-431.88,0.00043562,2]
[341152542,1730477444541,-503.5,0.00043576,3]
[341152543,1730477444551,-500.0,0.00043576,3]
[341152544,1730477444561,-500.0,0.00043653,3]
[341152545,1730477444570,-500.0,0.00043653,3]
[341152546,1730477444580,-500.0,0.00043653,3]
[341152547,1730477444589,-500.0,0.00043653,3]
[341152548,1730477444599,-500.0,0.00043653,3]
[341152549,1730477444608,-358.46582915,0.00043653,3]
[341152550,1730477444618,-246.404,0.0004366,120]
[341152551,1730477444628,-649.33449184,0.00043677,7]
[341152552,1730477444637,-586.13599845,0.00043677,7]
[341152553,1730477444647,-279.90666173,0.00043677,7]
[341152554,1730477444657,-741.29,0.00043731,3]
[341152555,1730477444666,-640.44,0.00043731,3]
[341152556,1730477444676,-500.0,0.00043732,3]
[341152557,1730477444686,-500.0,0.00043732,3]
[341152558,1730477444696,-500.0,0.00043732,3]
[341152559,1730477444705,-500.0,0.00043732,3]
[341152560,1730477444715,-500.0,0.00043732,3]
[341152561,1730477444724,-500.0,0.00043732,3]
[341152562,1730477444734,-500.0,0.00043732,3]
[341152563,1730477444743,-714.63,0.00043732,3]
[341152564,1730477444754,-272.70534098,0.00043834,3]
[341152565,1730477444767,-500.0,0.00043834,3]
[341152566,1730477444777,-369.43879807,0.00043834,3]
[341152567,1730477444786,-500.0,0.00043834,3]
[341152568,1730477444795,-150.0,0.00043834,3]
[341152569,1730477444804,-500.0,0.00043834,3]
[341152570,1730477444813,-500.0,0.00043834,3]
[341152571,1730477444823,-500.0,0.00043834,3]
[341152572,1730477444832,-500.0,0.00043834,3]
[341152573,1730477444842,-500.0,0.00043834,3]
[341152574,1730477444851,-500.0,0.00043834,3]
[341152575,1730477444861,-500.0,0.00043834,3]
[341152576,1730477444871,-500.0,0.00043834,3]
[341152577,1730477444880,-500.0,0.00043834,3]
[341152578,1730477444890,-500.0,0.00043834,3]
[341152579,1730477444899,-500.0,0.00043834,3]
[341152580,1730477444909,-500.0,0.00043834,3]
[341152581,1730477444918,-500.0,0.00043835,3]
[341152582,1730477444928,-500.0,0.00043835,3]
[341152583,1730477444938,-503.5,0.0004385,3]
[341152584,1730477444949,-500.0,0.0004385,3]
[341152585,1730477444961,-600.0,0.0004389,2]
[341152586,1730477444972,-500.0,0.00043927,3]
[341152587,1730477444983,-500.0,0.00043927,3]
[341152588,1730477444994,-500.0,0.00043927,120]
[341152589,1730477445004,-500.0,0.00043927,120]
[341152590,1730477445017,-500.0,0.00043927,120]
[341152591,1730477445029,-500.0,0.00043927,120]
[341152592,1730477445039,-1170.14,0.00043977,2]
[341152593,1730477445049,-741.29,0.00044005,3]
[341152594,1730477445060,-500.0,0.00044006,3]
[341152595,1730477445070,-500.0,0.00044006,3]
[341152596,1730477445080,-500.0,0.00044006,3]
[341152597,1730477445091,-500.0,0.00044006,3]
[341152598,1730477445102,-500.0,0.00044006,3]
[341152599,1730477445112,-500.0,0.00044006,3]
[341152600,1730477445123,-500.0,0.00044006,3]
[341152601,1730477445134,-714.63,0.00044006,3]
[341152602,1730477445144,-500.0,0.00044108,3]
[341152603,1730477445155,-268.16,0.00044108,3]
[341152604,1730477445167,-161.34,0.00044108,3]
[341152605,1730477445178,-500.0,0.00044108,3]
[341152606,1730477445188,-500.0,0.00044108,3]
[341152607,1730477445198,-500.0,0.00044108,3]
[341152608,1730477445208,-500.0,0.00044108,3]
[341152609,1730477445217,-500.0,0.00044108,3]
[341152610,1730477445227,-500.0,0.00044108,3]
[341152611,1730477445237,-500.0,0.00044108,3]
[341152612,1730477445247,-500.0,0.00044108,3]
[341152613,1730477445257,-500.0,0.00044108,3]
[341152614,1730477445270,-257.14074944,0.00044108,3]
[341152615,1730477445280,-500.0,0.00044108,3]
[341152616,1730477445290,-500.0,0.00044108,3]
[341152617,1730477445300,-242.1518097,0.00044109,3]
[341152618,1730477445310,-644.63535579,0.00044109,3]
[341152619,1730477445320,-503.5,0.00044124,3]
[341152620,1730477445331,-500.0,0.00044124,3]
[341152621,1730477445342,-500.0,0.00044201,3]
[341152622,1730477445351,-500.0,0.00044201,3]
[341152623,1730477445362,-500.0,0.00044225,120]
[341152624,1730477445372,-1157.7018,0.00044226,2]
[341152625,1730477445382,-151.8,0.00044226,120]
[341152626,1730477445392,-741.29,0.00044279,3]
[341152627,1730477445402,-500.0,0.0004428,3]
[341152628,1730477445412,-500.0,0.0004428,3]
[341152629,1730477445422,-500.0,0.0004428,3]
[341152630,1730477445432,-256.12898822,0.0004428,3]
[341152631,1730477445443,-500.0,0.0004428,3]
[341152632,1730477445452,-560.26519823,0.0004428,3]
[341152633,1730477445462,-500.0,0.0004428,3]
[341152634,1730477445472,-714.63,0.0004428,3]
[341152635,1730477445482,-500.0,0.00044325,3]
[341152636,1730477445491,-1769.99838816,0.00044326,30]
[341152637,1730477445501,-246.383,0.0004433,7]
[341152638,1730477445510,-454.00870263,0.0004433,2]
[341152639,1730477445523,-500.0,0.00044382,3]
[341152640,1730477445533,-500.0,0.00044382,3]
[341152641,1730477445543,-500.0,0.00044382,3]
[341152642,1730477445552,-500.0,0.00044382,3]
[341152643,1730477445563,-500.0,0.00044382,3]
[341152644,1730477445573,-500.0,0.00044382,3]
[341152645,1730477445583,-500.0,0.00044382,3]
[341152646,1730477445592,-500.0,0.00044382,3]
[341152647,1730477445602,-500.0,0.00044382,3]
[341152648,1730477445612,-358.19,0.00044382,3]
[341152649,1730477445623,-500.0,0.00044382,3]
[341152650,1730477445633,-500.0,0.00044382,3]
[341152651,1730477445644,-431.88,0.00044384,2]
[341152652,1730477445653,-431.88,0.00044384,2]
[341152653,1730477445663,-431.2,0.00044384,2]
[341152654,1730477445674,-503.5,0.00044398,3]
[341152655,1730477445684,-500.0,0.00044398,3]
[341152656,1730477445694,-500.0,0.00044475,3]
[341152657,1730477445703,-500.0,0.00044475,3]
[341152658,1730477445713,-1600.63393229,0.00044475,4]
[341152659,1730477445723,-8252.58587165,0.00044492,4]
[341152660,1730477445733,-341.23611929,0.00044496,4]
[341152661,1730477445743,-169.37,0.00044497,2]
[341152662,1730477445753,-1600.63393229,0.00044509,4]
[341152664,1730477445765,-8252.58587165,0.00044514,4]
[341152665,1730477445775,-2741.46434903,0.00044528,15]
[341152666,1730477445786,-150.0,0.0004453,7]
[341152667,1730477445796,-8252.58587165,0.00044532,4]
[341152668,1730477445806,-2000.0,0.00044549,2]
[341152670,1730477445817,-1600.63393229,0.00044551,4]
[341152671,1730477445827,-1600.63393229,0.00044553,4]
[341152672,1730477445837,-741.29,0.00044553,3]
[341152673,1730477445847,-500.0,0.00044554,3]
[341152674,1730477445856,-500.0,0.00044554,3]
[341152675,1730477445867,-500.0,0.00044554,3]
[341152676,1730477445876,-500.0,0.00044554,3]
[341152677,1730477445886,-500.0,0.00044554,3]
[341152678,1730477445897,-714.63,0.00044554,3]
[341152679,1730477445908,-1600.63393229,0.00044564,4]
[341152680,1730477445918,-8252.58587165,0.00044576,4]
[341152681,1730477445929,-8252.58587165,0.00044587,4]
[341152682,1730477445939,-893.0,0.00044591,7]
[341152683,1730477445951,-200.00000001,0.00044624,30]
[341152684,1730477445962,-150.0,0.00044639,7]
[341152685,1730477445972,-500.0,0.00044656,3]
[341152686,1730477445982,-500.0,0.00044656,3]
[341152687,1730477445992,-500.0,0.00044656,3]
[341152688,1730477446003,-500.0,0.00044656,3]
[341152689,1730477446015,-500.0,0.00044656,3]
[341152690,1730477446026,-500.0,0.00044656,3]
[341152692,1730477446037,-500.0,0.00044656,3]
[341152693,1730477446047,-500.0,0.00044656,3]
[341152694,1730477446056,-500.0,0.00044656,3]
[341152695,1730477446067,-631.10741296,0.00044656,3]
[341152696,1730477446077,-500.0,0.00044656,3]
[341152697,1730477446087,-215.5192734,0.00044663,2]
[341152698,1730477446098,-10000.0,0.00044671,7]
[341152699,1730477446109,-503.5,0.00044672,3]
[341152700,1730477446119,-500.0,0.00044672,3]
[341152701,1730477446128,-500.0,0.00044673,3]
[341152702,1730477446138,-500.0,0.00044673,3]
[341152703,1730477446147,-2044.7633,0.00044673,2]
[341152704,1730477446157,-86859.49719027,0.00044673,2]
[341152705,1730477446170,-937.24341874,0.00044673,2]
[341152706,1730477446228,-500.0,0.00043286,3]
[341152707,1730477446237,-7330.18768894,0.00044673,2]
[341152708,1730477446272,-2553.84871915,0.00044673,2]
[341152709,1730477446454,-153.0,0.00040424,2]
[341152710,1730477446464,-2319.2229829,0.00044673,2]
[341152711,1730477446473,-1017.70903954,0.00044673,2]
[341152712,1730477446484,-4620.75786046,0.00044673,2]
[341152713,1730477446494,-2345.94213954,0.00044673,2]
[341152714,1730477446510,-153.0,0.00040424,2]
[341152715,1730477446521,-33.05126046,0.00044673,2]
[341152716,1730477446530,-260.00929222,0.00044673,2]
[341152717,1730477446542,-155.12840778,0.00044673,2]
[341152718,1730477446550,-1278.5104,0.00044673,2]
[341152719,1730477446560,-500.0,0.00044673,2]
[341152720,1730477446571,-2426.8428,0.00044673,2]
[341152721,1730477446581,-215.0926,0.00044673,2]
[341152722,1730477446590,-9309.02579222,0.00044673,2]
[341152723,1730477456896,156.38,0.00015342,2]
[341152724,1730477458639,249.7705,0.0003,2]
[341152725,1730477461177,167.69175,0.00029441,2]
[341152962,1730477498277,598.78,0.00044776,30]
[341152963,1730477519516,250.0,0.00017,2]
[341152964,1730477520635,300.0,0.00019,2]
[341152965,1730477521534,295.74525,0.0003,2]
[341152966,1730477521721,350.0,0.00021,2]
[341152967,1730477522802,212.702444,0.00023,2]
[341152968,1730477522822,187.297556,0.00023,2]
[341152969,1730477523933,450.0,0.00025,2]
[341152970,1730477525035,500.0,0.00027,2]
[341152971,1730477526147,550.0,0.00029,2]
[341152972,1730477527282,600.0,0.00031,2]
[341152973,1730477528442,650.0,0.00033,2]
[341152975,1730477921314,150.0,0.00021,3]
[341152977,1730478103300,156.72,0.00015342,2]
[341152978,1730478164223,310.62,0.00044767,120]
[341152980,1730478308767,666764.1696672,0.00016,2]
[341152981,1730478330847,1600.0,0.000101,2]
[341152982,1730478342951,11808.70184484,0.00044767,30]
[341152983,1730478357021,26407.96652991,6.94e-05,2]
[341152984,1730478401144,-258.50317863,0.00025,2]
[341152985,1730478446148,5077.01589102,0.0001305,2]
[341152986,1730478448101,-936.88150201,0.00022,2]
[341152987,1730478448121,-428.53005122,0.000225,2]
[341152988,1730478448141,-675.59342979,0.00025,2]
[341152989,1730478448162,-5670.10307604,0.000298,2]
[341152990,1730478448182,-170.07804724,0.000299,2]
[341152991,1730478448202,-774.55363442,0.000299,2]
[341152992,1730478449147,-2516.35479354,0.000299,2]
[341152993,1730478480716,1012.21113602,0.00013,15]
[341152994,1730478481372,300.0,0.00019725,2]
[341152995,1730478520963,2212.14890409,0.00044767,30]
[341152996,1730478527941,1040.01028045,0.00018,2]
[341152998,1730478545143,-47481.84871341,0.00023922,2]
[341152999,1730478545166,-179.2245,0.0003,2]
[341153000,1730478545186,-151.0,0.0003,120]
[341153001,1730478545205,-151.0,0.0003,120]
[341153002,1730478545226,-1497.72,0.0003,2]
[341153003,1730478545245,-8359.61426913,0.0003,2]
[341153004,1730478545265,-209.23,0.00030403,2]
[341153005,1730478545284,-413.72182762,0.0003153,7]
[341153006,1730478545304,-1250.96289471,0.00032,30]
[341153007,1730478545324,-1611.2331753,0.00035,2]
[341153008,1730478545344,-2315.06,0.00035,2]
[341153009,1730478545366,-12444.81,0.00035,10]
[341153010,1730478545386,-9023.66,0.00035,2]
[341153011,1730478560100,-1056.06,0.00035894,2]
[341153012,1730478560124,-6136.614034,0.00036,120]
[341153013,1730478569113,-6430.21458031,0.00036,120]
[341153014,1730478572773,500.86301168,0.00023973,2]
[341153015,1730478573416,500.0,0.00023973,2]
[341153017,1730478587886,2631.47004241,0.00044767,49]
[341153025,1730478635878,-13819.80109631,0.00036,120]
[341153026,1730478635888,-903.76371071,0.00036,2]
[341153027,1730478635897,-631.27909837,0.00036,2]
[341153028,1730478635907,-151.84,0.00036457,2]
[341153029,1730478635917,-653.24458898,0.00036612,2]
[341153030,1730478635928,-295.74525,0.00036941,2]
[341153031,1730478635940,-179.2245,0.00036941,2]
[341153032,1730478635949,-653.24458898,0.00036999,2]
[341153033,1730478635959,-4023.25545533,0.00037,120]
[341153034,1730478635968,-29294.17917922,0.00037,2]
[341153035,1730478635977,-3933.68,0.00037,2]
[341153036,1730478635987,-150.99,0.00037,2]
[341153037,1730478635997,-999.99,0.000371,2]
[341153038,1730478636006,-2380.25,0.000371,2]
[341153039,1730478636016,-169.42,0.0003726,2]
[341153040,1730478636026,-150.0,0.00037397,2]
[341153041,1730478636035,-224.59,0.00037399,2]
[341153042,1730478636045,-250.0,0.00037605,2]
[341153043,1730478636054,-200.0,0.00037665,2]
[341153044,1730478636064,-387.273,0.00037689,49]
[341153045,1730478636073,-249.7705,0.00037689,2]
[341153046,1730478636083,-1000.0,0.00037716,2]
[341153047,1730478636092,-204.97,0.00037783,2]
[341153048,1730478636101,-2196.81,0.00037805,2]
[341153050,1730478636111,-289.23,0.0003781,2]
[341153052,1730478636120,-250.0,0.00037812,120]
[341153053,1730478636129,-23900.0,0.00037829,2]